bitfinex/quotes_BTCUSD_20250814
["timestamp","ask_amount","ask_price","bid_price","bid_amount"]
[1755174969130,0.01148389,118710.0,118630.0,0.00842957]
[1755174969398,0.16850741,118690.0,118620.0,0.34]
[1755174969612,0.16849733,118700.0,118640.0,0.025274]
[1755174969838,0.00495785,118740.0,118680.0,0.00842601]
[1755174970084,0.17703589,118630.0,118600.0,0.025279]
[1755174970299,0.01149028,118620.0,118600.0,0.025279]
[1755174970517,0.00306,118700.0,118640.0,0.025]
[1755174970726,0.17155855,118700.0,118610.0,0.03343099]
[1755174970938,0.00306,118700.0,118620.0,0.17703537]
[1755174971178,0.16847887,118710.0,118640.0,0.34]
[1755174971392,0.15018825,118700.0,118650.0,0.01157645]
[1755174971612,0.067465,118680.0,118650.0,0.01157645]
[1755174971836,0.067465,118660.0,118650.0,0.01157645]
[1755174972268,0.067465,118700.0,118650.0,0.01157645]
[1755174972487,0.00495785,118690.0,118650.0,0.01157645]
[1755174972925,0.00495785,118690.0,118650.0,0.18856739]
[1755174973221,0.00486872,118690.0,118660.0,0.50295]
[1755174973445,0.067465,118720.0,118670.0,1.09150244]
[1755174973675,0.067465,118720.0,118690.0,0.0084253]
[1755174973895,0.067465,118740.0,118700.0,0.08272325]
[1755174974122,0.06620153,118720.0,118700.0,0.08272325]
[1755174974335,0.06620153,118720.0,118700.0,0.07451754]
[1755174974547,0.23466909,118720.0,118700.0,0.07451754]
[1755174974752,0.00306,118710.0,118700.0,0.06331942]
[1755174974975,0.1715378,118710.0,118640.0,0.34]
[1755174975180,0.067465,118700.0,118670.0,0.07280195]
[1755174975392,0.00306,118690.0,118670.0,0.0720374]
[1755174975670,0.26180122,118720.0,118670.0,0.07178525]
[1755174975861,0.01744902,118700.0,118670.0,0.07178525]
[1755174976528,0.17687382,118730.0,118670.0,0.07178525]
[1755174976529,0.00842247,118730.0,118670.0,0.07178525]
[1755174976759,0.24432292,118740.0,118670.0,0.07178525]
[1755174976993,0.00306,118750.0,118680.0,0.17694612]
[1755174977224,0.00306,118750.0,118680.0,0.16852003]
[1755174977437,0.00306,118750.0,118680.0,0.17694604]
[1755174977669,0.00306,118750.0,118700.0,0.08272325]
[1755174977887,0.00306,118740.0,118700.0,0.08272325]
[1755174978105,0.00306,118730.0,118700.0,0.08272325]
[1755174978797,0.17687545,118730.0,118700.0,0.08272325]
[1755174979008,0.01744902,118710.0,118700.0,0.08272325]
[1755174979236,0.17996169,118710.0,118630.0,0.202045]
[1755174979469,0.1859412,118700.0,118660.0,0.08272325]
[1755174979659,0.01744902,118700.0,118660.0,0.08272325]
[1755174979877,0.02050902,118700.0,118660.0,0.08272325]
[1755174980109,0.00306,118690.0,118660.0,0.08272325]
[1755174980558,0.01744902,118700.0,118660.0,0.08272325]
[1755174981009,0.19433671,118720.0,118660.0,0.08272325]
[1755174981216,0.1859428,118700.0,118660.0,0.08272325]
[1755174981416,0.17690388,118710.0,118660.0,0.08272325]
[1755174981622,0.17688769,118720.0,118680.0,0.08247163]
[1755174981841,0.00306,118710.0,118680.0,0.08221792]
[1755174982063,0.00306,118710.0,118680.0,0.08170404]
[1755174982272,0.00306,118740.0,118680.0,0.08091789]
[1755174982494,0.18590248,118730.0,118680.0,0.08013957]
[1755174982709,0.08272325,118730.0,118680.0,0.07962351]
[1755174982924,0.16843563,118740.0,118680.0,0.07962351]
[1755174983134,0.16843619,118740.0,118680.0,0.07883045]
[1755174983381,0.24431265,118750.0,118680.0,0.08621584]
[1755174983594,0.2358868,118750.0,118680.0,0.07701899]
[1755174983861,0.067465,118730.0,118680.0,0.07676501]
[1755174984051,0.06728884,118730.0,118690.0,0.08272325]
[1755174984458,0.00306,118720.0,118690.0,0.08272325]
[1755174984833,0.067465,118710.0,118690.0,0.08272325]
[1755174985035,0.23900419,118710.0,118690.0,0.08272325]
[1755174985244,0.070525,118710.0,118690.0,0.08272325]
[1755174985441,0.070525,118710.0,118630.0,0.1936144]
[1755174985442,0.1799621,118710.0,118630.0,0.20204397]
[1755174985643,0.1799621,118710.0,118660.0,0.08272325]
[1755174985928,0.00306,118700.0,118660.0,0.08272325]
[1755174986140,0.17155301,118700.0,118660.0,0.08272325]
[1755174986269,0.16849301,118700.0,118660.0,0.08272325]
[1755174986490,0.01744902,118680.0,118660.0,0.08272325]
[1755174988305,0.01744902,118690.0,118660.0,0.08194074]
[1755174988529,0.01744902,118690.0,118660.0,0.08143521]
[1755174988742,0.00306,118690.0,118660.0,0.08065456]
[1755174988948,0.00306,118690.0,118660.0,0.08011845]
[1755174989150,0.24741351,118720.0,118660.0,0.0798504]
[1755174989357,0.22717768,118740.0,118680.0,0.08220412]
[1755174989358,0.17685768,118740.0,118680.0,0.08220412]
[1755174989574,0.17929634,118770.0,118680.0,0.08220412]
[1755174989575,0.0024,118770.0,118690.0,0.30809025]
[1755174989800,0.0849472,118770.0,118700.0,0.25963847]
[1755174990268,0.00222395,118770.0,118710.0,0.51689873]
[1755174990700,0.067465,118760.0,118720.0,0.08272325]
[1755174990940,0.067465,118740.0,118730.0,0.08272325]
[1755174991149,0.070525,118760.0,118730.0,0.08272325]
[1755174991374,0.070525,118760.0,118730.0,0.0743065]
[1755174991577,0.16842279,118750.0,118730.0,0.0743065]
[1755174991808,0.16842279,118750.0,118730.0,0.06588975]
[1755174992040,0.17991699,118740.0,118660.0,0.1769058]
[1755174992305,0.01744902,118730.0,118680.0,0.02083314]
[1755174992743,0.18589902,118730.0,118680.0,0.02083314]
[1755174992989,0.01739335,118720.0,118680.0,0.02083314]
[1755174993205,0.2815275,118760.0,118640.0,0.17704547]
[1755174993206,0.0002,118800.0,118740.0,0.16842148]
[1755174993464,0.0002,118800.0,118780.0,0.16836917]
[1755174993689,0.0002,118800.0,118770.0,0.00841963]
[1755174993930,0.0002,118800.0,118760.0,0.34]
[1755174994200,0.0002,118800.0,118750.0,0.36212074]
[1755174994201,0.0002,118800.0,118750.0,0.18516]
[1755174994446,0.56151818,118810.0,118760.0,0.34012]
[1755174994937,0.56151818,118810.0,118750.0,0.36200011]
[1755174994938,0.59086498,118810.0,118770.0,0.08272325]
[1755174995380,0.5538837,118810.0,118770.0,0.2596533]
[1755174995587,0.5538837,118810.0,118770.0,0.08272325]
[1755174996227,0.45195106,118810.0,118780.0,0.79199017]
[1755174996439,0.3069172,118810.0,118800.0,0.16835016]
[1755174996661,0.3067972,118810.0,118790.0,0.16836405]
[1755174996876,0.3067972,118810.0,118780.0,0.08272325]
[1755174997094,0.3067972,118810.0,118740.0,0.36189975]
[1755174997095,0.01744902,118790.0,118740.0,0.36189975]
[1755174997326,0.01744902,118790.0,118780.0,0.08272325]
[1755174997543,0.3067972,118810.0,118780.0,0.08272325]
[1755174997787,0.3067972,118810.0,118800.0,0.50835016]
[1755174998225,0.3067972,118810.0,118800.0,0.69370841]
[1755174998434,0.3067972,118810.0,118800.0,0.88518931]
[1755174998928,0.3067972,118810.0,118800.0,1.06762031]
[1755174999383,0.26193848,118810.0,118800.0,1.06762031]
[1755175000024,0.26193848,118810.0,118800.0,0.88518931]
[1755175000234,0.26193848,118810.0,118800.0,1.23678731]
[1755175000457,0.25755053,118810.0,118800.0,1.23678731]
[1755175000890,0.25755053,118810.0,118800.0,1.28961236]
[1755175001122,7e-05,118850.0,118840.0,0.5082935]
[1755175001341,7e-05,118850.0,118840.0,3.64463175]
[1755175001577,7e-05,118850.0,118840.0,3.8369195]
[1755175001801,7e-05,118850.0,118840.0,0.9128245]
[1755175002023,7e-05,118850.0,118840.0,0.54499945]
[1755175002595,7e-05,118850.0,118840.0,0.65226345]
[1755175002948,7e-05,118850.0,118840.0,0.99226345]
[1755175003352,7e-05,118850.0,118840.0,1.02062745]
[1755175003765,7e-05,118850.0,118840.0,1.02922709]
[1755175004006,0.0002,118870.0,118840.0,1.02922709]
[1755175004007,0.0002,118870.0,118860.0,0.19326518]
[1755175004224,0.0002,118870.0,118860.0,1.88140933]
[1755175004427,0.0002,118870.0,118860.0,1.56473233]
[1755175004639,0.0004,118910.0,118900.0,0.16820857]
[1755175004856,0.0004,118910.0,118900.0,0.80207637]
[1755175005068,0.067465,118970.0,118910.0,0.51659372]
[1755175005286,0.067465,118970.0,118950.0,0.08272325]
[1755175006537,0.067465,118970.0,118930.0,0.51657413]
[1755175006538,0.067465,118990.0,118960.0,0.08272325]
[1755175006664,0.067465,118990.0,118970.0,0.19256776]
[1755175006889,0.070505,118990.0,118980.0,0.08272325]
[1755175007573,0.067465,118990.0,118980.0,0.08272325]
[1755175007763,0.08840276,119000.0,118980.0,0.08272325]
[1755175007965,0.067465,119030.0,118980.0,0.14046737]
[1755175008177,0.16802526,119030.0,118990.0,0.02465838]
[1755175008390,0.51643227,119050.0,119000.0,0.08272325]
[1755175008614,0.32784781,119070.0,119010.0,0.02465838]
[1755175008615,0.16801997,119060.0,119010.0,0.02465838]
[1755175008802,0.17640423,119100.0,119010.0,0.11158295]
[1755175009026,0.17640423,119100.0,119010.0,0.02465838]
[1755175009027,0.00839983,119050.0,119010.0,0.02465838]
[1755175009251,0.1714049,119050.0,118980.0,0.18484]
[1755175009472,0.1714049,119050.0,118950.0,0.00840689]
[1755175009473,0.17646048,119010.0,118930.0,0.38980027]
[1755175009698,0.17646292,119020.0,118940.0,0.0042038]
[1755175009903,0.00304,119010.0,118940.0,0.17124103]
[1755175010115,0.01744902,119000.0,118970.0,0.08272325]
[1755175010336,0.17113018,118990.0,118940.0,0.08248443]
[1755175010548,0.02048902,118980.0,118910.0,0.20097748]
[1755175010761,0.00304,119010.0,118930.0,0.17657374]
[1755175010888,0.03751676,119050.0,118960.0,0.00840618]
[1755175010889,0.20555008,119050.0,118960.0,0.00840618]
[1755175011117,0.20555008,119050.0,118960.0,0.47336738]
[1755175011118,0.50803332,119050.0,118960.0,0.47336738]
[1755175011330,0.50803332,119050.0,118980.0,0.08272325]
[1755175011331,0.17644234,119020.0,118980.0,0.08272325]
[1755175011554,0.01744902,118990.0,118960.0,0.0649904]
[1755175011777,0.18553047,118990.0,118930.0,0.2938412]
[1755175012010,0.01744902,118960.0,118900.0,0.4818134]
[1755175012226,0.01744902,118960.0,118900.0,0.6584367]
[1755175012448,0.01744902,118980.0,118930.0,0.08272325]
[1755175012651,0.1765211,118970.0,118930.0,0.08272325]
[1755175012887,0.01744902,118970.0,118930.0,0.09099558]
[1755175013097,0.17115252,118970.0,118930.0,0.09099558]
[1755175013314,0.00304,118970.0,118930.0,0.09099558]
[1755175013540,0.17951308,119000.0,118950.0,0.08272325]
[1755175013804,0.070505,119000.0,118950.0,0.09099558]
[1755175014011,0.00304,119000.0,118960.0,0.08272325]
[1755175014223,0.17646346,119030.0,118970.0,0.08272325]
[1755175014482,0.17645103,119050.0,118970.0,0.38475468]
[1755175014706,0.17639835,119050.0,119000.0,0.08272325]
[1755175015165,0.16801555,119090.0,119000.0,0.08272325]
[1755175015166,0.16801555,119090.0,119030.0,0.08272325]
[1755175015373,0.17635228,119080.0,119030.0,0.10494368]
[1755175015591,0.17635228,119080.0,119040.0,0.02222043]
[1755175015808,0.22320706,119100.0,119050.0,0.08272325]
[1755175015809,0.18564446,119100.0,119050.0,0.08272325]
[1755175016035,0.01764042,119100.0,119060.0,0.02171333]
[1755175016254,0.19396435,119100.0,119050.0,0.08272325]
[1755175016478,0.1763373,119090.0,119050.0,0.08272325]
[1755175016710,0.067465,119090.0,119050.0,0.08272325]
[1755175016932,0.067465,119090.0,119060.0,0.08272325]
[1755175016933,0.00262,119080.0,119060.0,0.08272325]
[1755175017143,0.17636776,119070.0,119020.0,0.1]
[1755175017363,0.01744902,119050.0,119020.0,0.1]
[1755175017602,0.17636901,119070.0,119020.0,0.13936479]
[1755175017824,0.12582452,119080.0,119030.0,0.08272325]
[1755175018033,0.16796863,119070.0,119030.0,0.08272325]
[1755175018254,0.00839912,119060.0,119030.0,0.08272325]
[1755175018472,0.16799666,119050.0,119030.0,0.08272325]
[1755175018691,0.16799666,119050.0,119020.0,0.125203]
[1755175018692,0.17901649,119050.0,119020.0,0.125203]
[1755175018932,0.17639788,119050.0,119020.0,0.19524355]
[1755175019150,0.16800028,119050.0,119030.0,0.08272325]
[1755175019361,0.17638376,119060.0,119030.0,0.08272325]
[1755175019362,0.16798374,119060.0,119030.0,0.08272325]
[1755175019584,0.16801075,119040.0,119020.0,0.1125203]
[1755175019801,0.16802486,119030.0,119020.0,0.18272325]
[1755175020021,0.16801075,119040.0,119020.0,0.18272325]
[1755175020246,0.17642232,119050.0,119030.0,0.08272325]
[1755175020489,0.17638286,119060.0,119030.0,0.08272325]
[1755175020711,0.16801075,119040.0,119030.0,0.08272325]
[1755175020941,0.16799671,119050.0,119030.0,0.01827232]
[1755175021165,0.17638286,119060.0,119030.0,0.10099557]
[1755175021423,0.16798389,119060.0,119040.0,0.08272325]
[1755175021664,0.16799664,119050.0,119030.0,0.01827232]
[1755175021902,0.16799664,119050.0,119030.0,0.10099557]
[1755175022117,0.19381607,119070.0,119030.0,0.10099557]
[1755175022340,0.17636705,119070.0,119040.0,0.08272325]
[1755175022566,0.17635206,119080.0,119040.0,0.08272325]
[1755175022791,0.17639118,119090.0,119040.0,0.08581325]
[1755175023016,0.07636688,119070.0,119040.0,0.08272325]
[1755175023239,0.16798381,119060.0,119040.0,0.08272325]
[1755175023460,0.00839912,119060.0,119040.0,0.08272325]
[1755175023681,0.17635343,119080.0,119050.0,0.08272325]
[1755175023950,0.08575509,119090.0,119050.0,0.08272325]
[1755175024174,0.16797974,119100.0,119050.0,0.08581325]
[1755175024385,0.16797974,119100.0,119050.0,0.08272325]
[1755175024614,0.0002,119110.0,119090.0,0.08272325]
[1755175024831,0.0002,119110.0,119100.0,0.02859227]
[1755175025049,0.0002,119110.0,119100.0,0.00728814]
[1755175025254,0.0002,119110.0,119100.0,0.39377527]
[1755175025472,0.0002,119110.0,119100.0,0.66208703]
[1755175025705,0.0002,119110.0,119100.0,0.57664535]
[1755175025953,0.0002,119110.0,119100.0,0.10790625]
[1755175026864,0.0002,119110.0,119100.0,0.11084625]
[1755175027322,0.02027226,119170.0,119110.0,0.04270276]
[1755175027543,0.17622059,119170.0,119120.0,0.08272325]
[1755175027772,0.10833394,119190.0,119140.0,0.08272325]
[1755175027992,0.19931731,119200.0,119150.0,0.08272325]
[1755175028214,0.17880975,119190.0,119150.0,0.08272325]
[1755175028488,0.17618975,119190.0,119150.0,0.08272325]
[1755175028725,0.21707619,119190.0,119150.0,0.08272325]
[1755175028946,0.04088644,119190.0,119150.0,0.08272325]
[1755175029198,0.064884,119200.0,119150.0,0.08272325]
[1755175029199,0.0315267,119200.0,119170.0,0.08272325]
[1755175029469,0.0315267,119200.0,119180.0,0.10810766]
[1755175029720,0.0315267,119200.0,119190.0,0.08566325]
[1755175029955,0.5,119220.0,119190.0,0.13171089]
[1755175030186,0.5,119220.0,119200.0,0.10649025]
[1755175030417,0.498,119220.0,119210.0,0.023767]
[1755175030666,0.498,119220.0,119210.0,0.10247796]
[1755175030898,0.498,119220.0,119210.0,0.08272325]
[1755175031123,0.498,119220.0,119210.0,0.10524033]
[1755175031349,0.498,119220.0,119210.0,0.13194733]
[1755175031588,0.498,119220.0,119210.0,0.08272325]
[1755175032066,0.498,119220.0,119210.0,0.10351243]
[1755175032287,0.66575708,119220.0,119210.0,0.08272325]
[1755175032517,0.498,119220.0,119210.0,0.08272325]
[1755175032746,0.00838855,119210.0,119180.0,0.00294]
[1755175032976,0.67414493,119220.0,119190.0,0.08272325]
[1755175033204,0.498,119220.0,119190.0,0.1078191]
[1755175033436,0.16777296,119210.0,119190.0,0.08272325]
[1755175033663,0.398,119220.0,119190.0,0.08272325]
[1755175033950,0.398,119220.0,119200.0,0.067465]
[1755175034168,0.39674183,119220.0,119210.0,0.08272325]
[1755175034422,0.00838855,119210.0,119160.0,0.3607136]
[1755175034669,0.16777156,119210.0,119180.0,0.067465]
[1755175034918,0.16777156,119210.0,119150.0,0.00294]
[1755175034919,0.17620781,119180.0,119140.0,0.067465]
[1755175035123,0.17579473,119190.0,119160.0,0.067465]
[1755175035348,0.17579473,119190.0,119170.0,0.08272325]
[1755175035349,0.16781477,119180.0,119170.0,0.08272325]
[1755175035567,0.16781477,119180.0,119160.0,0.15018825]
[1755175035813,0.16779948,119190.0,119170.0,0.08272325]
[1755175036094,0.17627801,119130.0,119100.0,0.025183]
[1755175036317,0.16791201,119110.0,119100.0,0.025183]
[1755175036528,0.16791201,119110.0,119070.0,0.2012]
[1755175036529,0.16797906,119070.0,119050.0,0.20084009]
[1755175036745,0.17633985,119090.0,119060.0,0.092647]
[1755175036958,0.0083963,119100.0,119070.0,0.08272325]
[1755175037183,0.16795431,119080.0,119060.0,0.10508603]
[1755175037398,0.25331167,119070.0,119060.0,0.03762103]
[1755175037670,0.16798252,119060.0,119050.0,0.00827233]
[1755175037928,0.16799686,119050.0,119030.0,0.072465]
[1755175038171,0.16801075,119040.0,119030.0,0.15518825]
[1755175038391,0.16801075,119040.0,119030.0,0.005]
[1755175038820,0.250734,119040.0,119030.0,0.005]
[1755175039031,0.17638225,119060.0,119030.0,0.005]
[1755175039241,0.16801075,119040.0,119030.0,0.005]
[1755175039460,0.17640228,119070.0,119030.0,0.005]
[1755175039678,0.17638316,119060.0,119030.0,0.08772325]
[1755175039904,0.17640228,119070.0,119040.0,0.08272325]
[1755175040123,0.17296075,119040.0,119030.0,0.005]
[1755175040349,0.17494075,119040.0,119030.0,0.005]
[1755175040560,0.257664,119040.0,119030.0,0.005]
[1755175040781,0.17646746,119010.0,118970.0,0.00294]
[1755175041006,0.17646746,119010.0,118980.0,0.10793325]
[1755175041223,0.17647097,119000.0,118970.0,0.08272325]
[1755175041428,0.17647097,119000.0,118960.0,0.025214]
[1755175041429,0.17650452,118980.0,118960.0,0.025214]
[1755175041657,0.00840406,118990.0,118970.0,0.08272325]
[1755175041871,0.16805895,119020.0,118970.0,0.1078191]
[1755175042092,0.00840477,118980.0,118970.0,0.08272325]
[1755175042307,0.1764798,119030.0,118970.0,0.00294]
[1755175042525,0.00840194,119020.0,118980.0,0.08272325]
[1755175042730,0.1680678,119000.0,118980.0,0.08272325]
[1755175042971,0.00495,119040.0,118990.0,0.08566325]
[1755175043185,0.00495,119040.0,119010.0,0.08272325]
[1755175043414,0.00495,119040.0,119020.0,1.32509142]
[1755175043632,0.00495,119040.0,119030.0,0.08986387]
[1755175043833,0.5,119100.0,119050.0,0.34]
[1755175044057,0.5,119100.0,119080.0,0.08272325]
[1755175044304,0.5,119100.0,119080.0,0.08692209]
[1755175044305,0.16794021,119090.0,119080.0,0.08692209]
[1755175044521,0.17093021,119090.0,119080.0,0.08272325]
[1755175044731,0.1763525,119080.0,119020.0,0.2964924]
[1755175044945,0.17932722,119090.0,119020.0,0.2964924]
[1755175045158,0.17932722,119090.0,119030.0,0.34]
[1755175045363,0.17635209,119080.0,119040.0,0.08272325]
[1755175045570,0.24679222,119090.0,119040.0,0.08272325]
[1755175045782,0.16798265,119060.0,119040.0,0.08272325]
[1755175045988,0.17636782,119070.0,119040.0,0.08272325]
[1755175046199,0.16798362,119060.0,119040.0,0.08272325]
[1755175046415,0.17635217,119080.0,119040.0,0.08272325]
[1755175046636,0.67092024,119100.0,119040.0,0.08272325]
[1755175046855,0.00350069,119090.0,119060.0,0.08272325]
[1755175047070,0.00350069,119090.0,119070.0,0.08566325]
[1755175047285,0.00350069,119090.0,119070.0,0.09170953]
[1755175047500,0.00350069,119090.0,119070.0,0.08272325]
[1755175048169,0.00350069,119090.0,119080.0,0.08272325]
[1755175049066,0.00350069,119090.0,119080.0,0.10520786]
[1755175049329,0.5,119100.0,119090.0,0.02045343]
[1755175049555,0.5,119100.0,119090.0,0.08566325]
[1755175050946,0.5,119100.0,119090.0,0.08272325]
[1755175051558,0.5,119100.0,119090.0,0.05272325]
[1755175051796,0.5,119100.0,119090.0,0.0548225]
[1755175052002,0.5,119100.0,119090.0,0.05566325]
[1755175052644,0.5,119100.0,119090.0,0.05272325]
[1755175053327,0.5113863,119100.0,119060.0,0.2934903]
[1755175053555,0.67931241,119100.0,119070.0,0.08272325]
[1755175053782,0.17093174,119090.0,119070.0,0.08272325]
[1755175054012,0.16795431,119080.0,119070.0,0.08272325]
[1755175054238,0.17808237,119080.0,119070.0,0.025193]
[1755175054488,0.1763681,119070.0,119000.0,0.20426]
[1755175054712,0.17096006,119070.0,119030.0,0.0252]
[1755175054955,0.17640351,119050.0,119010.0,0.2936583]
[1755175055175,0.01138983,119050.0,119020.0,0.08272325]
[1755175055414,0.01138983,119050.0,119030.0,0.025203]
[1755175055415,0.17100075,119040.0,119030.0,0.025203]
[1755175056112,0.1764318,119030.0,118970.0,0.067465]
[1755175056347,0.27957355,119040.0,119000.0,0.025211]
[1755175056580,0.00312,119030.0,119000.0,0.10793425]
[1755175056813,0.02056902,119060.0,119010.0,0.08272325]
[1755175057036,0.26224197,119050.0,119000.0,0.025211]
[1755175057269,0.18858014,119040.0,119000.0,0.10793425]
[1755175057508,0.00839983,119050.0,119010.0,0.08272325]
[1755175057729,0.02896955,119040.0,119000.0,0.025211]
[1755175057958,0.00312,119040.0,119000.0,0.10793425]
[1755175058188,0.17113309,119040.0,119010.0,0.08272325]
[1755175058417,0.00312,119030.0,119010.0,0.08272325]
[1755175058670,0.1763993,119050.0,119010.0,0.08272325]
[1755175058894,0.16801128,119040.0,119010.0,0.08272325]
[1755175059120,0.1795193,119050.0,119010.0,0.08272325]
[1755175059587,0.17636899,119070.0,119010.0,0.08566325]
[1755175059819,0.00312,119080.0,119040.0,0.08272325]
[1755175060053,0.50312,119100.0,119050.0,0.08254034]
[1755175060288,0.1710634,119090.0,119050.0,0.08254034]
[1755175060538,0.00312,119090.0,119050.0,0.08254034]
[1755175060791,0.67632378,119100.0,119050.0,0.08254034]
[1755175061024,0.5,119100.0,119060.0,0.08566325]
[1755175061260,0.5,119100.0,119080.0,0.08272325]
[1755175061478,0.5,119100.0,119080.0,0.28408325]
[1755175062409,0.5,119100.0,119090.0,0.08272325]
[1755175062645,0.5,119100.0,119090.0,0.0877625]
[1755175062868,0.5,119100.0,119090.0,0.45736977]
[1755175062869,0.49675,119100.0,119090.0,0.45736977]
[1755175063101,0.27645,119100.0,119090.0,0.49218702]
[1755175063545,0.27645,119100.0,119090.0,0.5183251]
[1755175063773,0.27645,119100.0,119090.0,0.56636929]
[1755175063995,0.27645,119100.0,119090.0,0.54892027]
[1755175064218,0.07645,119100.0,119090.0,0.52735354]
[1755175064427,0.5,119120.0,119110.0,0.16791201]
[1755175064679,0.5,119120.0,119110.0,2.85417348]
[1755175064884,0.04047763,119120.0,119110.0,3.23516102]
[1755175065081,0.04047763,119120.0,119110.0,2.11610348]
[1755175065295,0.04047763,119120.0,119110.0,1.74897054]
[1755175065514,0.04047763,119120.0,119110.0,1.25280954]
[1755175065739,0.04047763,119120.0,119110.0,1.21562346]
[1755175065964,0.04047763,119120.0,119110.0,0.88392746]
[1755175066222,0.04047763,119120.0,119110.0,1.83553446]
[1755175066444,0.04022604,119120.0,119110.0,1.79239827]
[1755175066652,0.04022604,119120.0,119110.0,1.79042648]
[1755175066876,0.04022604,119120.0,119110.0,1.85231267]
[1755175067098,0.04022604,119120.0,119110.0,1.96347746]
[1755175067330,0.04022604,119120.0,119110.0,1.91023529]
[1755175067544,0.04022604,119120.0,119110.0,1.34781246]
[1755175068181,0.04022604,119120.0,119110.0,1.23513046]
[1755175068444,0.04022604,119120.0,119110.0,1.29831946]
[1755175068647,0.04022604,119120.0,119110.0,0.37601545]
[1755175068860,0.04022604,119120.0,119110.0,0.54392746]
[1755175069134,0.04022604,119120.0,119110.0,0.88392746]
[1755175069381,0.00802929,119120.0,119110.0,1.22804546]
[1755175069600,0.00312,119170.0,119130.0,0.17627725]
[1755175069823,0.00312,119170.0,119160.0,0.08272325]
[1755175070072,0.00312,119170.0,119160.0,0.37601595]
[1755175070287,0.00312,119170.0,119160.0,0.08272325]
[1755175071190,0.01151137,119170.0,119120.0,0.2933381]
[1755175071399,0.17096193,119160.0,119130.0,0.08272325]
[1755175071627,0.00312,119150.0,119130.0,0.10790425]
[1755175071851,0.00312,119150.0,119100.0,0.2012]
[1755175071852,0.00839348,119140.0,119100.0,0.2012]
[1755175072082,0.28389912,119150.0,119110.0,0.08272325]
[1755175072083,0.00312,119130.0,119110.0,0.08272325]
[1755175072331,0.00312,119150.0,119110.0,0.08482215]
[1755175072574,0.00312,119140.0,119110.0,0.08482215]
[1755175072800,0.00312,119160.0,119130.0,0.08272325]
[1755175073026,0.00312,119160.0,119120.0,0.00209872]
[1755175073027,0.00312,119150.0,119120.0,0.2933787]
[1755175073239,0.00312,119140.0,119130.0,0.08272325]
[1755175073453,0.11604,119160.0,119130.0,0.08272325]
[1755175073914,0.00312,119150.0,119130.0,0.08272325]
[1755175074132,0.00312,119180.0,119140.0,0.08482162]
[1755175074358,0.00312,119170.0,119150.0,0.08272325]
[1755175074579,0.16781818,119180.0,119150.0,0.08272325]
[1755175074580,0.16781366,119180.0,119150.0,0.08272325]
[1755175074871,0.16782806,119170.0,119150.0,0.08272325]
[1755175075093,0.16782937,119170.0,119150.0,0.08272325]
[1755175075311,0.19366469,119190.0,119150.0,0.08272325]
[1755175075534,0.17620575,119180.0,119150.0,0.08272325]
[1755175075980,0.18114575,119180.0,119150.0,0.08272325]
[1755175076208,0.00494,119180.0,119150.0,0.10790025]
[1755175076882,0.00494,119180.0,119160.0,0.08272325]
[1755175077101,0.00494,119180.0,119170.0,0.08272325]
[1755175077328,0.00494,119180.0,119170.0,0.37599435]
[1755175077749,0.00494,119180.0,119170.0,0.08272325]
[1755175078387,0.00806,119180.0,119150.0,0.025177]
[1755175078606,0.00312,119170.0,119160.0,0.08272325]
[1755175079724,0.00494,119180.0,119160.0,0.08272325]
[1755175080229,0.17587394,119180.0,119160.0,0.08272325]
[1755175080446,0.00806,119180.0,119160.0,0.08272325]
[1755175080671,0.00312,119170.0,119160.0,0.08272325]
[1755175080895,0.00494,119180.0,119160.0,0.08272325]
[1755175081347,0.00494,119180.0,119160.0,0.07643126]
[1755175081596,0.00494,119180.0,119160.0,0.07433325]
[1755175082270,0.00494,119180.0,119160.0,0.07643126]
[1755175082524,0.00494,119180.0,119170.0,0.08272325]
[1755175082751,0.00494,119180.0,119170.0,0.37892665]
[1755175083221,0.00494,119180.0,119170.0,0.54675412]
[1755175083705,0.00494,119180.0,119170.0,0.74795412]
[1755175084140,0.00494,119180.0,119170.0,0.58012665]
[1755175084572,0.00494,119180.0,119170.0,1.29168612]
[1755175085475,0.00494,119180.0,119170.0,1.26106312]
[1755175085699,0.00494,119180.0,119170.0,1.28262985]
[1755175085929,0.00494,119180.0,119170.0,0.92012665]
[1755175086156,0.00494,119180.0,119170.0,1.34941112]
[1755175086853,0.00494,119180.0,119170.0,1.38619775]
[1755175087075,0.00987,119180.0,119170.0,1.38619775]
[1755175087586,0.00987,119180.0,119170.0,1.21859312]
[1755175088020,0.00987,119180.0,119170.0,1.23604214]
[1755175088241,0.00987,119180.0,119170.0,0.87859312]
[1755175088453,0.00987,119180.0,119170.0,0.86175912]
[1755175088675,0.00987,119180.0,119170.0,0.74795412]
[1755175088895,0.00987,119180.0,119170.0,1.01211612]
[1755175089105,0.00987,119180.0,119170.0,0.95518212]
[1755175089348,0.00987,119180.0,119170.0,0.74795412]
[1755175089570,0.00987,119180.0,119170.0,1.08795412]
[1755175089786,0.00987,119180.0,119170.0,0.37598665]
[1755175090005,0.01298,119180.0,119170.0,0.08272325]
[1755175091392,0.00987,119180.0,119170.0,0.08272325]
[1755175091591,0.00987,119180.0,119170.0,0.37601375]
[1755175091808,0.00987,119180.0,119170.0,0.08272325]
[1755175092238,0.01298,119180.0,119170.0,0.08272325]
[1755175093563,0.00987,119180.0,119170.0,0.08272325]
[1755175093771,0.00987,119180.0,119170.0,0.37603765]
[1755175094234,0.0086114,119180.0,119170.0,1.11573752]
[1755175094465,0.0086114,119180.0,119170.0,1.04111252]
[1755175095102,0.0086114,119180.0,119170.0,1.10857752]
[1755175095556,0.0086114,119180.0,119170.0,1.14683426]
[1755175095760,0.0086114,119180.0,119170.0,0.88683512]
[1755175095964,0.0086114,119180.0,119170.0,0.54683512]
[1755175096173,0.0086114,119180.0,119170.0,0.88683512]
[1755175096383,0.0086114,119180.0,119170.0,0.71900765]
[1755175096586,0.0086114,119180.0,119170.0,0.88683512]
[1755175096789,0.0036114,119180.0,119170.0,0.71900765]
[1755175097047,0.0036114,119180.0,119170.0,0.88683512]
[1755175097275,0.0036114,119180.0,119170.0,2.12590357]
[1755175097477,0.0036114,119180.0,119170.0,1.1512065]
[1755175097680,0.0036114,119180.0,119170.0,1.09923712]
[1755175097906,0.0036114,119180.0,119170.0,1.1186205]
[1755175098579,0.0036114,119180.0,119170.0,1.1406869]
[1755175099044,0.0036114,119180.0,119170.0,1.16130003]
[1755175099256,0.0036114,119180.0,119170.0,1.09923712]
[1755175099499,0.0036114,119180.0,119170.0,1.12130352]
[1755175100437,0.39694183,119220.0,119210.0,0.16777116]
[1755175100672,0.39694183,119220.0,119210.0,0.3976226]
[1755175101130,0.39694183,119220.0,119210.0,0.4227776]
[1755175101366,0.39694183,119220.0,119210.0,0.40101215]